bitfinex/quotes_ETHUSD_20260209
["timestamp","ask_amount","ask_price","bid_price","bid_amount"]
[1770605084402,0.002,2092.9,2091.8,0.97684679]
[1770605084606,0.002,2092.9,2092.0,1.02270728]
[1770605085186,0.002,2092.9,2092.3,0.97648493]
[1770605085908,0.002,2092.9,2091.9,0.97648493]
[1770605087814,0.002,2092.9,2092.0,0.04586049]
[1770605088118,0.002,2092.9,2092.0,1.02234542]
[1770605088497,0.99153511,2092.9,2091.4,0.97748493]
[1770605088692,0.99153511,2092.9,2092.1,0.001]
[1770605089218,0.002,2092.7,2091.9,0.001]
[1770605089796,0.99153511,2092.7,2091.9,0.001]
[1770605093301,0.99153511,2092.7,2091.4,0.001]
[1770605093302,0.98953511,2092.4,2091.4,0.001]
[1770605096121,0.98953511,2092.4,2091.1,0.001]
[1770605096122,0.98953511,2092.1,2091.1,0.001]
[1770605097820,1.09193511,2092.5,2091.1,0.97748493]
[1770605098528,1.19480022,2092.4,2091.2,2.17197077]
[1770605098827,1.19480022,2092.4,2091.3,0.97648493]
[1770605100708,4.77920091,2092.5,2091.4,0.97648493]
[1770605100919,0.002,2092.7,2091.6,0.97648493]
[1770605101119,0.002,2092.9,2092.4,1.02234542]
[1770605101318,0.002,2092.9,2092.4,0.97648493]
[1770605101720,0.002,2092.9,2092.5,1.02234542]
[1770605102029,0.002,2092.9,2092.5,0.97648493]
[1770605102225,0.002,2092.9,2092.6,1.02234542]
[1770605102495,0.002,2092.7,2092.6,0.97648493]
[1770605102612,0.002,2092.7,2092.6,2.17117096]
[1770605102813,0.002,2092.9,2092.6,2.17117096]
[1770605103225,0.002,2092.9,2092.6,0.97648493]
[1770605103423,0.002,2092.9,2092.5,1.19471177]
[1770605103424,0.002,2092.9,2092.3,2.2171669]
[1770605103601,0.002,2092.9,2092.4,2.17124656]
[1770605103815,0.002,2092.9,2092.4,0.97648493]
[1770605104520,0.002,2092.9,2091.7,1.1951651]
[1770605104725,0.98953511,2092.8,2091.5,0.001]
[1770605106722,1.19462894,2092.7,2091.5,0.97748493]
[1770605108657,1.19474313,2092.5,2091.5,0.001]
[1770605109549,1.19474313,2092.5,2091.5,0.97748493]
[1770605109748,1.19474313,2092.5,2091.6,1.02234542]
[1770605109956,1.19474313,2092.5,2091.6,0.97648493]
[1770605110348,1.19474313,2092.5,2091.5,0.001]
[1770605110549,0.98953511,2092.4,2091.5,0.001]
[1770605110745,0.98953511,2092.2,2091.5,0.001]
[1770605111366,0.98953511,2092.2,2091.3,0.001]
[1770605111965,0.98953511,2092.1,2091.3,0.001]
[1770605112253,1.19485733,2092.3,2091.3,0.001]
[1770605112863,0.98953511,2092.3,2091.3,0.001]
[1770605113060,0.98824389,2092.3,2091.3,0.001]
[1770605113281,0.98953511,2092.1,2091.3,0.001]
[1770605113566,0.98953511,2092.1,2091.1,0.001]
[1770605114185,0.98953511,2092.1,2091.0,0.001]
[1770605114679,0.98953511,2092.1,2091.7,0.001]
[1770605114860,2.18456379,2092.0,2091.0,0.001]
[1770605115037,2.18456379,2092.0,2091.5,0.001]
[1770605115234,0.91504397,2091.9,2091.0,0.001]
[1770605115440,0.91504397,2091.7,2091.0,0.001]
[1770605116745,1.19525721,2091.6,2091.0,0.001]
[1770605117144,1.19525721,2091.6,2090.6,0.001]
[1770605117656,2.10613929,2091.6,2090.6,0.001]
[1770605117862,0.91088208,2091.5,2090.6,0.001]
[1770605118261,0.91088208,2091.5,2090.4,0.001]
[1770605118749,1.19537152,2091.4,2090.4,0.001]
[1770605119148,2.1062536,2091.4,2090.4,0.001]
[1770605119339,0.91088208,2091.3,2090.4,0.001]
[1770605121308,2.10636792,2091.2,2090.4,0.001]
[1770605122868,3.341,2091.1,2090.4,0.001]
[1770605123218,10.787009,2090.6,2089.2,0.97218281]
[1770605123369,1.19588615,2090.5,2089.2,0.97218281]
[1770605123573,2.10676823,2090.5,2089.2,0.97218281]
[1770605123908,9.87612692,2090.2,2088.9,2.16897807]
[1770605124069,10.787009,2090.2,2088.9,0.97218281]
[1770605124999,0.91088208,2090.2,2088.9,0.97218281]
[1770605125208,1.19611501,2090.1,2088.7,0.97218281]
[1770605125387,2.10699709,2090.1,2088.7,0.97218281]
[1770605126492,0.91088208,2090.0,2088.7,0.97218281]
[1770605126817,10.787009,2089.5,2088.0,0.97218281]
[1770605127019,0.91088208,2089.4,2088.1,1.2431154]
[1770605127306,1.19657301,2089.3,2089.1,0.001]
[1770605127607,1.19657301,2089.3,2088.2,0.97218281]
[1770605127905,1.19657301,2089.3,2088.9,0.001]
[1770605128205,1.19655377,2089.4,2088.9,0.001]
[1770605128407,1.19605779,2090.2,2089.1,0.04586049]
[1770605129294,1.19605779,2090.2,2088.9,0.97318281]
[1770605129692,1.19605779,2090.2,2089.0,0.97218281]
[1770605129892,1.19605779,2090.2,2089.1,1.0180433]
[1770605130098,1.19605779,2090.2,2089.5,0.97218281]
[1770605130293,1.19605779,2090.2,2089.0,1.0180433]
[1770605131011,1.19605779,2090.2,2089.4,0.97218281]
[1770605131714,4.78423117,2090.4,2089.4,0.97218281]
[1770605132595,4.78423117,2090.5,2089.5,0.97218281]
[1770605133011,5.69511325,2090.5,2089.1,0.97218281]
[1770605133196,15.57124017,2090.5,2089.1,0.97218281]
[1770605134113,0.91088208,2090.0,2088.9,0.001]
[1770605134285,4.25388208,2089.9,2088.9,0.001]
[1770605135321,3.343,2089.9,2088.9,0.001]
[1770605135617,0.91088208,2090.2,2089.0,0.97218281]
[1770605135817,1.19605779,2090.2,2089.1,1.0180433]
[1770605136320,1.19605779,2090.2,2089.1,2.21472637]
[1770605136494,1.19605779,2090.2,2089.1,1.0180433]
[1770605136702,1.19605779,2090.2,2089.1,2.16886904]
[1770605136901,1.19605779,2090.2,2089.1,2.21472953]
[1770605137107,2.10693987,2090.2,2089.1,1.24254672]
[1770605137619,1.19605779,2090.2,2089.1,1.24254672]
[1770605137794,1.19605779,2090.2,2089.4,2.21451495]
[1770605138213,1.19488913,2090.2,2089.4,2.21451495]
[1770605139217,4.53904304,2090.3,2089.5,0.97218281]
[1770605139421,4.53904304,2090.3,2089.4,1.19647165]
[1770605139804,4.53904304,2090.3,2089.4,2.21451495]
[1770605140528,4.53904304,2090.3,2089.2,1.19660193]
[1770605140697,4.53904304,2090.3,2089.3,1.19656818]
[1770605141020,4.53904304,2090.3,2089.3,1.19756885]
[1770605141240,0.002,2090.1,2089.3,1.19756885]
[1770605141397,0.002,2090.1,2089.3,0.001]
[1770605142625,0.91288208,2090.1,2088.9,0.001]
[1770605144008,0.91088208,2089.9,2088.9,0.001]
[1770605144194,1.19628672,2089.8,2088.9,0.001]
[1770605144401,0.91088208,2089.7,2088.9,0.001]
[1770605146218,1.19640122,2089.6,2088.9,0.001]
[1770605148027,1.19617224,2090.0,2089.0,0.94678221]
[1770605148222,0.002,2090.1,2089.1,1.19668756]
[1770605148416,0.9506282,2090.1,2088.9,1.19775765]
[1770605148733,0.9506282,2090.1,2088.9,1.19779724]
[1770605149130,0.9506282,2090.1,2089.0,1.19673218]
[1770605149313,0.002,2090.1,2089.1,0.94678221]
[1770605150530,0.002,2090.1,2089.4,0.94678221]
[1770605151257,0.002,2090.1,2089.3,0.90092172]
[1770605152111,0.002,2090.1,2089.5,0.04586049]
[1770605152931,0.002,2090.1,2089.6,2.09732294]
[1770605154141,0.002,2090.1,2089.6,0.90092172]
[1770605154315,0.002,2090.1,2089.5,1.19645066]
[1770605154837,0.002,2090.0,2089.5,1.24231042]
[1770605155007,0.002,2090.0,2089.5,2.14323214]
[1770605155435,0.002,2090.0,2089.6,0.90092172]
[1770605156057,4.7835446,2090.7,2089.6,0.90092172]
[1770605157235,4.78440789,2091.0,2090.0,0.90092172]
[1770605159427,0.002,2091.0,2090.0,0.90092172]
[1770605159614,0.002,2091.0,2090.0,1.19617154]
[1770605159814,0.002,2091.0,2089.9,1.19618833]
[1770605161346,0.002,2091.0,2089.4,2.09740885]
[1770605161347,0.9486282,2090.9,2089.4,2.09740885]
[1770605161522,0.9486282,2090.7,2089.5,1.19645792]
[1770605161723,0.9486282,2090.7,2089.5,1.24231841]
[1770605162223,0.9486282,2090.7,2089.5,0.04586049]
[1770605163018,0.9486282,2090.6,2089.3,0.001]
[1770605163234,0.9486282,2090.6,2089.3,1.19756713]
[1770605163434,0.9486282,2090.6,2089.5,0.04586049]
[1770605163634,0.9486282,2090.4,2089.3,0.001]
[1770605166028,0.9486282,2090.2,2089.3,0.001]
[1770605168056,2.14474321,2090.1,2089.5,0.001]
[1770605168267,1.19611501,2090.1,2089.5,0.001]
[1770605169223,2.14474321,2090.1,2089.5,0.001]
[1770605169651,0.9486282,2090.0,2089.3,0.001]
[1770605170650,1.19622948,2089.9,2089.3,0.001]
[1770605173236,2.14485768,2089.9,2089.3,0.001]
[1770605173568,2.14485768,2089.9,2088.3,2.09803049]
[1770605173569,10.73226216,2089.6,2088.3,2.09803049]
[1770605173867,0.9486282,2089.5,2088.2,1.19716004]
[1770605174160,0.9486282,2089.5,2088.1,1.19722828]
[1770605174721,0.9486282,2089.5,2088.1,1.19724387]
[1770605174954,0.9486282,2089.3,2088.0,0.001]
[1770605175251,0.94942634,2089.2,2088.0,0.001]
[1770605176347,0.94942634,2089.1,2088.0,0.001]
[1770605176933,0.95907302,2088.9,2088.0,0.001]
[1770605179273,0.95907302,2088.7,2088.0,0.001]
[1770605181538,1.19697404,2088.6,2088.2,0.001]
[1770605182154,1.19680214,2088.9,2088.2,0.92509538]
[1770605182356,1.19680214,2088.9,2088.2,0.001]
[1770605183563,4.78720857,2089.0,2088.2,0.001]
[1770605183751,0.95907302,2088.9,2088.2,0.001]
[1770605184164,4.78720857,2089.0,2088.2,0.001]
[1770605185332,5.74628159,2089.0,2088.2,0.001]
[1770605185871,0.95907302,2088.9,2088.2,0.001]
[1770605188572,1.19685944,2088.8,2088.2,0.001]
[1770605189073,2.15593246,2088.8,2088.2,0.001]
[1770605189241,0.95907302,2088.7,2088.0,0.001]
[1770605189442,0.95907302,2088.5,2087.4,0.00123204]
[1770605190673,2.1561617,2088.4,2087.4,0.00123204]
[1770605191072,1.19706626,2088.5,2087.7,0.92409538]
[1770605191369,1.19706626,2088.5,2087.4,0.92532742]
[1770605192368,2.15613928,2088.5,2087.4,0.92532742]
[1770605192670,1.19706626,2088.5,2087.4,0.92532742]
[1770605193039,5.74719846,2088.7,2087.5,1.19760479]
[1770605193261,5.74719846,2088.7,2087.5,2.12170017]
[1770605193472,0.95907302,2088.6,2087.5,2.12170017]
[1770605193772,0.95907302,2088.6,2087.6,0.001]
[1770605195348,0.002,2088.7,2087.6,0.97095587]
[1770605195546,1.198921,2088.7,2087.6,0.97095587]
[1770605197184,0.002,2088.7,2087.7,1.19749006]
[1770605197489,0.002,2088.7,2087.8,0.92409538]
[1770605198594,0.96107302,2088.7,2087.6,1.19850682]
[1770605198885,0.96107302,2088.7,2087.6,2.1226022]
[1770605199090,0.002,2088.7,2087.7,0.92409538]
[1770605199487,0.002,2088.7,2087.9,0.92409538]
[1770605201057,0.002,2088.7,2087.9,0.96995587]
[1770605201491,0.002,2088.7,2088.1,0.92409538]
[1770605202365,0.002,2088.9,2088.4,0.92409538]
[1770605202561,0.002,2088.9,2088.6,0.96995587]
[1770605202766,0.002,2089.8,2088.7,0.92409538]
[1770605202966,0.002,2089.8,2089.0,0.92409538]
[1770605203275,0.002,2089.8,2089.2,0.96995587]
[1770605203479,0.002,2089.8,2089.3,1.19657301]
[1770605203692,0.002,2089.8,2088.7,0.92409538]
[1770605203867,0.002,2089.8,2088.8,1.19682413]
[1770605204073,0.96107302,2089.8,2088.5,1.19700393]
[1770605204270,0.96107302,2089.8,2088.8,1.19684713]
[1770605204480,0.96107302,2089.8,2088.7,1.19687739]
[1770605204665,0.96107302,2089.8,2088.5,1.19699205]
[1770605204863,0.96107302,2089.8,2088.6,1.19696578]
[1770605205164,0.96107302,2089.8,2088.6,1.19695765]
[1770605205473,0.96107302,2089.8,2088.5,1.19699286]
[1770605205785,2.18396538,2089.7,2088.5,1.19699286]
[1770605205965,2.18396538,2089.7,2088.4,2.16702582]
[1770605207371,1.19634397,2089.7,2088.7,0.97613327]
[1770605207572,2.18396538,2089.7,2088.4,2.12734273]
[1770605207788,1.19645848,2089.5,2088.4,1.19706995]
[1770605209100,1.19645848,2089.5,2087.8,5.72079036]
[1770605209101,0.98762141,2089.1,2087.8,5.72079036]
[1770605209399,0.98762141,2089.1,2087.9,1.19734739]
[1770605209571,0.98762141,2089.1,2087.9,1.19736786]
[1770605209768,0.98762141,2089.1,2087.8,0.93127278]
[1770605209769,1.19674485,2089.0,2088.0,1.1973149]
[1770605209967,1.19674485,2089.0,2087.9,1.19733446]
[1770605210203,0.98762141,2088.9,2087.8,1.1983906]
[1770605210413,0.98762141,2088.9,2087.9,1.19737488]
[1770605210575,1.19674485,2089.0,2088.2,0.04586049]
[1770605212316,1.19651574,2089.4,2088.3,1.197146]
[1770605212776,5.77367379,2089.5,2088.5,0.97613327]
[1770605212777,1.19650076,2089.5,2088.5,0.97613327]
[1770605213478,1.19650076,2089.5,2088.5,0.04586049]
[1770605213700,0.98762141,2089.4,2088.3,4.542146]
[1770605213890,0.98762141,2089.4,2088.3,3.345]
[1770605214096,1.19650076,2089.5,2088.3,3.345]
[1770605214293,1.19650076,2089.5,2088.4,1.19708868]
[1770605214600,2.18412217,2089.5,2088.3,4.54211173]
[1770605214810,0.98762141,2089.4,2088.3,4.54211173]
[1770605215003,0.98762141,2089.4,2088.3,4.54214592]
[1770605216293,1.19657301,2089.3,2088.3,4.54214592]
[1770605217681,1.19657301,2089.3,2088.3,4.54214117]
[1770605218812,0.002,2089.6,2088.5,0.97613327]
[1770605219115,1.19840305,2089.6,2088.8,0.97613327]
[1770605220610,0.002,2089.6,2088.8,0.97613327]
[1770605220779,0.002,2089.6,2089.1,0.97613327]
[1770605220986,0.002,2089.6,2088.8,1.19682802]
[1770605221201,0.002,2089.6,2088.8,1.19682926]
[1770605221588,0.002,2089.6,2089.1,0.04586049]
[1770605221793,0.002,2089.6,2089.1,0.97613327]
[1770605221990,0.002,2089.6,2088.8,2.17296253]
[1770605227505,0.002,2089.6,2088.7,0.04586049]
[1770605227706,0.002,2089.6,2088.8,1.19684105]
[1770605229207,0.002,2089.6,2088.7,1.19687171]
[1770605230098,0.002,2089.6,2088.5,1.19698479]
[1770605230099,0.98962141,2089.6,2088.5,1.19698479]
[1770605230305,0.98962141,2089.6,2088.6,1.19696652]
[1770605230487,0.002,2089.6,2088.6,2.1272393]
[1770605230688,0.002,2089.6,2088.6,1.19696652]
[1770605231589,0.002,2089.6,2088.8,0.04586049]
[1770605231793,1.19840122,2089.6,2088.9,1.19680214]
[1770605232208,1.19840122,2089.6,2088.8,1.24267945]
[1770605233105,0.002,2089.6,2089.1,0.04586049]
[1770605234116,0.002,2089.6,2089.1,1.24252711]
[1770605234420,0.002,2089.6,2088.8,1.19682036]
[1770605234710,0.002,2089.6,2088.9,1.19680178]
[1770605235113,0.002,2089.6,2089.1,1.19667924]
[1770605235311,0.002,2089.4,2089.0,0.001]
[1770605235495,0.002,2089.4,2089.0,1.19773266]
[1770605235814,0.002,2089.4,2089.1,1.24254662]
[1770605236021,0.002,2089.4,2089.1,1.24250491]
[1770605236912,0.002,2089.4,2089.0,0.001]
[1770605237695,0.002,2089.4,2089.0,1.19773755]
[1770605238216,0.002,2089.4,2089.0,0.001]
[1770605238789,0.002,2089.4,2088.6,1.196965]
[1770605239292,0.002,2089.4,2088.5,1.26288962]
[1770605239518,0.002,2089.4,2088.6,1.19695722]
[1770605239690,0.002,2089.4,2088.5,1.26292228]
[1770605240019,0.002,2089.4,2088.6,1.1969729]
[1770605240528,0.92280764,2089.3,2088.5,0.02004]
[1770605241087,1.19851574,2089.4,2088.6,0.04586049]
[1770605241457,0.002,2089.4,2088.9,0.04586049]
[1770605242123,0.002,2089.4,2088.6,3.38986049]
[1770605242422,0.002,2089.4,2088.7,1.19691674]
[1770605242634,0.002,2089.4,2088.9,0.04586049]
[1770605244521,0.002,2089.4,2089.0,1.19674485]
[1770605244721,0.002,2089.4,2088.9,1.19680026]
[1770605245106,0.002,2089.4,2088.9,1.24266075]
[1770605245728,0.002,2089.4,2088.6,8.17768255]
[1770605246041,0.002,2089.4,2088.9,1.19680004]
[1770605246330,0.002,2089.4,2088.8,1.19682059]
[1770605246532,0.002,2089.4,2088.7,4.78766524]
[1770605246734,0.002,2089.4,2088.9,0.04586049]
[1770605247539,0.002,2089.8,2089.2,0.04586049]
[1770605247729,0.002,2089.8,2089.3,3.344]
[1770605248611,1.19565737,2090.9,2089.8,0.04586049]
[1770605249737,1.19565737,2090.9,2089.6,1.19640122]
[1770605249738,0.92280764,2090.8,2089.6,1.19640122]
[1770605250033,0.002,2090.3,2089.6,1.19640122]
[1770605250802,0.002,2090.3,2089.5,1.24228487]
[1770605251031,0.92480764,2090.3,2089.3,3.344]
[1770605251219,0.92480764,2090.3,2089.4,1.1965107]
[1770605251419,0.92480764,2090.3,2089.5,1.19645521]
[1770605251619,0.002,2090.3,2089.4,1.19648812]
[1770605252008,0.002,2090.3,2089.4,1.19650796]
[1770605252208,0.92480764,2090.3,2089.4,1.19650796]
[1770605252442,0.92480764,2090.3,2089.5,1.19645191]
[1770605252642,1.19605779,2090.2,2089.3,8.17608926]
[1770605252849,1.19605779,2090.2,2089.4,1.19651574]
[1770605253055,1.19605779,2090.2,2089.3,4.54054069]
[1770605253830,2.11886543,2090.2,2089.3,3.344]
[1770605254122,0.92280764,2090.1,2089.3,3.344]
[1770605254831,0.92280764,2089.9,2089.3,3.344]
[1770605255020,0.92280764,2089.9,2089.1,0.001]
[1770605255850,1.19617224,2090.0,2089.1,1.19764789]
[1770605256028,1.19617224,2090.0,2089.1,0.001]
[1770605256222,1.19804252,2090.3,2089.4,2.15461721]
[1770605256425,1.19801684,2090.3,2089.4,2.15461721]
[1770605256627,4.78371505,2090.5,2089.7,1.24220005]
[1770605256628,1.19594336,2090.5,2089.7,1.24220005]
[1770605256838,1.19594336,2090.5,2089.7,0.04586049]
[1770605257038,1.19594336,2090.5,2089.7,1.24220437]
[1770605259452,1.19594336,2090.5,2089.7,1.23900535]
[1770605260730,1.19565737,2090.9,2090.0,0.04586049]
[1770605261257,4.78462948,2091.0,2090.1,1.19611501]
[1770605261752,4.78462948,2091.0,2090.0,0.04586049]
[1770605261753,0.002,2090.3,2090.0,1.24199259]
[1770605261957,0.002,2090.3,2089.8,1.19626125]
[1770605262141,0.002,2090.3,2089.9,1.19622856]
[1770605262342,0.002,2090.3,2090.0,1.1961649]
[1770605262543,0.002,2090.3,2089.9,1.19619132]
[1770605262756,0.002,2090.3,2090.0,1.19616454]
[1770605263258,0.002,2090.3,2089.8,4.7850712]
[1770605264862,1.19760546,2091.0,2090.0,0.95810147]
[1770605265034,1.19760546,2091.0,2090.1,3.343]
[1770605265234,0.002,2091.0,2090.3,1.24181802]
[1770605265560,0.002,2091.0,2090.1,4.53911229]
[1770605265765,0.92733658,2091.0,2089.7,1.19631434]
[1770605265965,0.92733658,2091.0,2089.8,1.19628315]
[1770605266262,0.92733658,2091.0,2089.9,1.19619297]
[1770605266443,0.002,2091.0,2090.3,1.19599194]
[1770605266764,0.002,2091.0,2090.2,1.19600534]
[1770605266960,0.002,2091.0,2090.1,1.1960726]
[1770605267160,0.92733658,2091.0,2089.7,4.83104892]
[1770605267362,0.92733658,2091.0,2089.9,1.19622455]
[1770605267541,0.92733658,2091.0,2090.0,0.04586049]
[1770605267542,2.12099395,2090.9,2090.0,0.04586049]
[1770605268568,1.19565737,2090.9,2090.0,0.04586049]
[1770605270169,1.19565737,2090.9,2090.0,1.24200847]
[1770605270461,0.92533658,2090.8,2089.9,1.19618789]
[1770605270648,0.92533658,2090.8,2089.9,1.19622493]
[1770605270850,0.92533658,2090.8,2090.0,1.19617127]
[1770605271050,0.92533658,2090.8,2089.9,1.19619589]
[1770605271454,0.92533658,2090.8,2090.0,1.19616914]
[1770605271845,0.92533658,2090.8,2089.9,1.19618791]
[1770605272246,1.19577175,2090.7,2089.8,1.19625204]
[1770605272565,1.19577175,2090.7,2090.0,0.04586049]
[1770605273564,0.002,2090.6,2090.0,0.04586049]
[1770605273765,0.002,2090.6,2090.0,1.02749227]
[1770605274473,0.002,2091.0,2090.3,0.04586049]
[1770605274649,0.002,2092.1,2090.7,0.04586049]
[1770605274650,0.92733658,2091.7,2090.7,0.04586049]
[1770605274969,5.70832144,2091.7,2090.7,0.04586049]
[1770605275147,1.19531765,2091.5,2090.7,0.04586049]
[1770605276079,1.19722738,2091.7,2091.0,0.04586049]
[1770605276662,0.002,2091.7,2091.0,1.2414149]
[1770605278153,0.002,2091.7,2090.7,5.81057543]
[1770605278154,0.002,2091.7,2090.8,4.78270125]
[1770605278371,0.002,2091.7,2091.0,1.1955925]
[1770605278680,0.002,2091.7,2090.8,1.19571455]
[1770605279750,0.002,2091.7,2091.0,0.04586049]
[1770605280294,0.92733658,2091.7,2090.4,1.19591185]
[1770605280583,1.19525721,2091.6,2090.7,1.19576297]
[1770605280751,1.19525721,2091.6,2090.6,1.24168704]
[1770605281076,0.92533658,2091.5,2090.5,1.19583125]
[1770605281395,0.92533658,2091.5,2090.6,1.19582372]
[1770605281575,1.19525721,2091.6,2090.9,0.04586049]
[1770605282188,1.19525721,2091.6,2090.6,1.24168421]
[1770605282771,4.78302887,2091.7,2090.6,1.24168421]
[1770605283174,0.002,2091.7,2090.9,0.04586049]
[1770605283374,1.19720007,2091.7,2090.9,0.04586049]
[1770605283680,1.19720007,2091.7,2090.9,3.38786049]
[1770605283997,1.19720007,2091.7,2090.9,3.342]
[1770605284186,2.12253665,2091.7,2090.9,3.342]
[1770605284879,0.92533658,2091.6,2090.9,3.342]
[1770605286560,0.002,2091.5,2090.9,3.342]
[1770605286982,1.19731436,2091.5,2090.9,3.342]
[1770605287154,1.19731436,2091.5,2090.9,4.53765723]
[1770605287483,0.002,2091.5,2091.0,0.04586049]
[1770605287661,0.002,2092.1,2091.3,0.04586049]
[1770605288182,1.19697414,2092.1,2091.3,0.04586049]
[1770605288369,0.002,2092.1,2091.3,0.04586049]
[1770605288550,1.19697787,2092.1,2091.3,0.04586049]
[1770605288749,0.002,2092.1,2091.3,0.04586049]
[1770605289056,0.002,2092.1,2091.3,1.195406]
[1770605289257,0.002,2092.1,2091.4,0.04586049]
[1770605289566,0.002,2092.1,2091.3,1.195406]
[1770605289764,0.002,2092.1,2091.4,0.04586049]
[1770605290890,0.002,2092.1,2091.3,1.195406]
[1770605291098,0.0007192,2092.1,2091.3,1.195406]
[1770605291395,0.0007192,2092.1,2091.4,0.04586049]
[1770605292688,0.92605578,2092.1,2091.2,3.341]
[1770605292894,0.92605578,2092.1,2090.3,1.02749227]
[1770605293195,0.92533658,2091.9,2090.6,1.24168427]
[1770605294482,0.92533658,2091.9,2090.6,1.24168505]
[1770605294805,0.92533658,2091.9,2090.4,3.341]
[1770605294968,0.92533658,2091.9,2090.4,4.53691311]
[1770605295173,0.96231673,2091.7,2090.4,4.53691311]
[1770605297176,1.19525721,2091.6,2090.4,4.53691311]
[1770605297378,0.96963308,2091.5,2090.4,3.341]
[1770605298519,0.96963308,2091.5,2090.8,0.001]
[1770605299391,1.19537152,2091.4,2090.8,0.001]
[1770605299586,2.1650046,2091.4,2090.8,0.001]
[1770605300410,4.78118749,2091.6,2090.8,0.001]
[1770605300892,0.96963308,2091.5,2090.8,0.001]
[1770605301404,0.96963308,2091.3,2090.8,0.001]
[1770605303107,1.19537152,2091.4,2090.8,0.001]
[1770605303404,2.1650046,2091.4,2090.8,0.001]
[1770605303789,0.96963308,2091.3,2090.8,0.001]
[1770605305194,0.96963308,2091.3,2090.5,0.001]
[1770605305505,1.19548584,2091.2,2090.5,0.001]
[1770605306211,0.96963308,2091.1,2090.5,0.001]
[1770605307711,2.16523327,2091.0,2090.5,0.001]
[1770605308004,0.96963308,2090.9,2090.5,0.001]
[1770605309699,1.19571455,2090.8,2090.5,0.001]
[1770605310097,1.19571455,2090.8,2090.2,0.001]
[1770605311897,1.19571455,2090.8,2090.7,0.001]
[1770605312102,1.19571455,2090.8,2090.2,0.001]
[1770605312411,1.19554301,2091.1,2090.5,0.001]
[1770605312710,2.16517609,2091.1,2090.5,0.001]
[1770605313083,1.19554301,2091.1,2090.5,0.001]
[1770605313479,0.96963308,2091.0,2090.5,0.001]
[1770605313785,2.16529045,2090.9,2090.5,0.001]
[1770605314183,2.16529045,2090.9,2090.2,0.001]
[1770605314782,0.96963308,2090.8,2090.2,0.001]
[1770605315984,1.19577175,2090.7,2090.2,0.001]
[1770605318814,0.96963308,2091.1,2090.2,0.001]
[1770605319011,4.78240076,2091.2,2090.2,0.001]
[1770605319511,4.78240076,2091.2,2090.4,0.04586049]
[1770605321312,4.78240076,2091.2,2090.2,2.17796507]
[1770605321487,5.75203384,2091.2,2090.2,1.1970269]
[1770605321812,5.75203384,2091.2,2090.2,0.001]
[1770605321986,0.96963308,2091.1,2090.2,0.001]
[1770605323395,1.19560019,2091.0,2090.2,0.001]
[1770605323718,0.96963308,2090.9,2090.2,0.001]
[1770605325019,0.96963308,2090.9,2090.4,0.001]
[1770605325207,0.96963308,2090.9,2090.2,0.001]
[1770605325411,0.002,2090.7,2090.2,0.001]
[1770605327719,0.002,2090.7,2090.3,0.97395079]
[1770605327930,0.002,2090.7,2090.2,1.19705779]
[1770605329333,0.002,2090.7,2090.2,0.001]
[1770605329541,0.96434107,2090.7,2090.0,0.001]
[1770605329707,2.15817001,2090.6,2090.0,0.001]
[1770605330538,0.96234107,2090.5,2089.4,0.001]
[1770605331336,0.96234107,2090.3,2089.4,0.001]
[1770605331560,0.96234107,2090.1,2089.4,0.001]
[1770605331741,0.96234107,2089.9,2089.4,0.001]
[1770605332112,0.96234107,2089.9,2089.1,0.001]
[1770605334057,0.96234107,2089.7,2089.1,0.001]
[1770605335634,1.19628672,2089.8,2089.1,0.001]
[1770605335836,2.15862779,2089.8,2089.1,0.001]
[1770605336035,0.96234107,2089.7,2089.1,0.001]
[1770605337851,0.96234107,2089.5,2088.5,0.02004]
[1770605338039,1.19651574,2089.4,2088.7,0.001]
[1770605338421,2.15885681,2089.4,2088.7,0.001]
[1770605338626,0.96234107,2089.3,2088.7,0.001]
[1770605339457,0.96234107,2089.3,2089.0,0.001]
[1770605339962,1.19651574,2089.4,2089.0,0.001]
[1770605340165,4.78606298,2089.5,2089.0,0.002]
[1770605340452,4.78517102,2089.8,2089.0,0.002]
[1770605341359,0.002,2090.1,2089.4,1.01981128]
[1770605341653,1.19812789,2090.1,2089.1,0.97395079]
[1770605341956,0.002,2090.1,2089.2,1.01981128]
[1770605342132,1.19812484,2090.1,2089.2,1.01981128]
[1770605342333,0.002,2090.1,2089.3,1.19657301]
[1770605345539,0.002,2090.1,2089.3,2.1705238]
[1770605345940,0.002,2090.1,2089.4,0.97395079]
[1770605347676,0.96434107,2090.1,2089.0,0.001]
[1770605347828,0.96434107,2090.1,2089.0,1.19773926]
[1770605348768,0.96434107,2090.1,2089.0,0.001]
[1770605349469,0.96434107,2090.1,2089.0,1.19774276]
[1770605349683,1.19815752,2090.1,2089.1,0.97395079]
[1770605349966,0.96234107,2090.0,2089.0,1.19774485]
[1770605350137,1.19815752,2090.1,2089.0,2.21755613]
[1770605350675,0.96234107,2090.0,2089.0,0.001]
[1770605351766,0.96234107,2089.8,2089.2,0.001]
[1770605353187,1.19718129,2089.9,2089.2,0.001]
[1770605353480,0.002,2089.9,2089.2,0.97495079]
[1770605353669,0.002,2089.9,2089.3,1.19657301]
[1770605354478,0.002,2089.9,2089.2,0.001]
[1770605355079,0.99168377,2089.8,2089.0,0.001]
[1770605355668,2.18802774,2089.7,2089.0,0.001]
[1770605356440,0.95223439,2089.6,2089.0,0.001]
[1770605356838,0.95223439,2089.6,2088.5,1.21706755]
[1770605357043,0.95223439,2089.6,2088.5,0.02004]
[1770605357793,2.14869287,2089.5,2088.5,0.02004]
[1770605358798,2.14869287,2089.5,2088.5,1.21706486]
[1770605359136,2.14869287,2089.5,2088.5,0.02004]
[1770605359398,2.14869287,2089.5,2088.5,1.21705493]
[1770605359554,1.19645848,2089.5,2088.5,2.21238333]
[1770605359967,4.78583393,2089.7,2088.5,2.21238333]
[1770605360290,0.95223439,2089.6,2088.5,1.21705493]
[1770605360865,4.78583393,2089.7,2088.7,0.04586049]
[1770605361057,4.78583393,2089.7,2088.7,1.04118889]
[1770605361252,0.002,2089.9,2088.7,1.04118889]